bitfinex-derivatives/quotes_SOLF0:USTF0_20260226
["timestamp","ask_amount","ask_price","bid_price","bid_amount"]
[1772113990942,3.8141316,87.697,87.661,3.75740599]
[1772113991444,3.8141316,87.697,87.648,3.75740599]
[1772113992041,10.2635,87.687,87.649,14.02520599]
[1772113992349,10.2635,87.687,87.65,3.75740599]
[1772113994043,10.2635,87.687,87.651,10.2675]
[1772113995748,10.2635,87.687,87.652,3.75740599]
[1772113996248,10.2627,87.694,87.655,3.75740599]
[1772113996439,3.8141316,87.693,87.655,3.75740599]
[1772113997045,3.8141316,87.691,87.655,3.75740599]
[1772114002546,3.8141316,87.691,87.656,10.267]
[1772114002742,3.8141316,87.691,87.657,3.75740599]
[1772114005051,10.2632,87.69,87.657,3.75740599]
[1772114005651,10.2637,87.685,87.657,3.75740599]
[1772114006656,3.8141316,87.689,87.657,3.75740599]
[1772114006955,3.70270845,87.7,87.657,3.75740599]
[1772114007950,2.99342977,87.71,87.659,10.2667]
[1772114007951,3.70270845,87.698,87.659,10.2667]
[1772114008154,3.70270845,87.698,87.657,3.75740599]
[1772114008656,3.70270845,87.696,87.657,3.75740599]
[1772114009252,10.2609,87.709,87.666,3.86708998]
[1772114009447,3.70270845,87.714,87.666,3.86708998]
[1772114009656,3.70270845,87.709,87.666,3.86708998]
[1772114011057,3.70270845,87.702,87.666,3.86708998]
[1772114011253,3.70270845,87.699,87.655,3.86708998]
[1772114012253,3.70270845,87.699,87.657,3.86708998]
[1772114013050,10.2619,87.701,87.657,3.86708998]
[1772114013257,3.70270845,87.721,87.677,3.86708998]
[1772114013459,3.70270845,87.719,87.677,3.86708998]
[1772114014048,2.99594498,87.72,87.433,141.76755738]
[1772114014049,3.70270845,87.708,87.662,3.86708998]
[1772114014257,3.70270845,87.699,87.662,3.86708998]
[1772114014455,2.99594498,87.69,87.651,3.86708998]
[1772114014654,3.70270845,87.689,87.646,10.2682]
[1772114014961,5.13111376,87.721,87.627,3.86708998]
[1772114014962,3.70270845,87.669,87.627,3.86708998]
[1772114016358,3.70270845,87.666,87.62,10.2712]
[1772114016754,3.70270845,87.666,87.621,3.86708998]
[1772114019562,3.74055789,87.664,87.611,10.2723]
[1772114019763,3.74055789,87.664,87.612,3.59345496]
[1772114020266,3.74055789,87.664,87.616,55.88326049]
[1772114020465,3.74055789,87.658,87.616,55.88326049]
[1772114021456,3.74055789,87.658,87.617,3.59345496]
[1772114021661,3.74055789,87.654,87.617,3.59345496]
[1772114021867,3.74055789,87.666,87.62,2.99594498]
[1772114022161,3.74055789,87.665,87.621,3.59345496]
[1772114022362,3.74055789,87.649,87.616,52.28980553]
[1772114022562,3.74055789,87.639,87.598,3.59345496]
[1772114023066,3.74055789,87.637,87.598,3.59345496]
[1772114023267,8.59636433,87.68,87.598,3.59345496]
[1772114023268,3.74055789,87.649,87.6,2.99594498]
[1772114023464,3.74055789,87.649,87.601,3.59345496]
[1772114024857,3.74055789,87.649,87.607,10.2727]
[1772114025369,3.74055789,87.649,87.601,3.59345496]
[1772114025765,3.74055789,87.639,87.601,3.59345496]
[1772114025972,3.74055789,87.639,87.589,3.59345496]
[1772114026761,10.271,87.623,87.589,3.59345496]
[1772114026963,3.74055789,87.623,87.589,3.59345496]
[1772114028871,3.74055789,87.619,87.573,3.59345496]
[1772114029367,3.74055789,87.619,87.49,35.44188934]
[1772114029368,2.99594498,87.6,87.55,3.59345496]
[1772114029572,3.74055789,87.609,87.556,3.59345496]
[1772114030961,3.74055789,87.607,87.556,3.59345496]
[1772114031174,20.5365,87.646,87.511,11.31973043]
[1772114031175,3.74055789,87.619,87.57,6.58939994]
[1772114031371,3.74055789,87.609,87.56,2.99594498]
[1772114031570,3.74055789,87.609,87.56,6.58939994]
[1772114031871,3.74055789,87.609,87.561,3.59345496]
[1772114032071,3.74055789,87.608,87.556,3.59345496]
[1772114032563,6.73650287,87.62,87.571,3.59345496]
[1772114033567,10.27,87.631,87.581,3.59345496]
[1772114033868,3.74055789,87.629,87.581,3.59345496]
[1772114034669,14.01095789,87.628,87.581,3.59345496]
[1772114034873,3.74055789,87.639,87.581,3.59345496]
[1772114035876,3.74055789,87.638,87.585,3.59345496]
[1772114036677,3.72096914,87.633,87.585,3.59345496]
[1772114036872,2.99594498,87.63,87.585,3.59345496]
[1772114037073,3.72096914,87.629,87.585,3.59345496]
[1772114037278,3.72096914,87.627,87.585,3.59345496]
[1772114037482,3.72096914,87.627,87.571,3.64986474]
[1772114037678,3.72096914,87.619,87.56,2.99594498]
[1772114037980,10.2724,87.611,87.561,3.64986474]
[1772114038180,13.99336914,87.611,87.57,2.99594498]
[1772114038571,10.2713,87.62,87.571,3.64986474]
[1772114038771,3.72096914,87.639,87.581,3.64986474]
[1772114038977,3.72096914,87.639,87.591,3.64986474]
[1772114039377,10.2694,87.636,87.591,3.64986474]
[1772114040278,3.72096914,87.629,87.58,2.99594498]
[1772114040676,3.72096914,87.629,87.582,13.92546474]
[1772114040879,3.72096914,87.629,87.583,3.64986474]
[1772114041179,10.2696,87.635,87.591,3.64986474]
[1772114041579,3.72096914,87.642,87.6,2.99594498]
[1772114042378,10.2699,87.633,87.593,3.64986474]
[1772114044986,3.72096914,87.64,87.6,2.99594498]
[1772114045486,3.72096914,87.64,87.601,3.64986474]
[1772114045983,2.99594498,87.65,87.601,3.64986474]
[1772114046183,10.2689,87.641,87.601,3.64986474]
[1772114046778,10.2679,87.65,87.61,2.99594498]
[1772114047083,3.72096914,87.653,87.61,2.99594498]
[1772114047884,3.72096914,87.669,87.613,3.64986474]
[1772114048978,10.2667,87.659,87.614,10.2719]
[1772114049784,10.2667,87.659,87.614,13.92176474]
[1772114050188,10.2673,87.654,87.614,13.92176474]
[1772114052276,3.72096914,87.669,87.621,3.64986474]
[1772114052885,3.72096914,87.661,87.621,3.64986474]
[1772114053987,10.2668,87.658,87.621,3.64986474]
[1772114055386,13.98776914,87.658,87.621,3.64986474]
[1772114056385,3.72096914,87.657,87.621,3.64986474]
[1772114056584,3.72096914,87.657,87.61,2.99594498]
[1772114056787,3.72096914,87.657,87.6,2.99594498]
[1772114057090,3.72096914,87.649,87.6,2.99594498]
[1772114057584,3.72096914,87.649,87.594,3.64986474]
[1772114057585,10.2697,87.634,87.594,3.64986474]
[1772114057788,3.72096914,87.637,87.581,3.64986474]
[1772114057988,3.72096914,87.629,87.581,3.64986474]
[1772114058190,10.2711,87.622,87.581,13.92566474]
[1772114061495,10.2718,87.616,87.581,3.64986474]
[1772114061691,3.72096914,87.615,87.57,6.64580972]
[1772114062190,3.72096914,87.615,87.571,3.64986474]
[1772114062899,10.2723,87.612,87.571,3.64986474]
[1772114064597,13.99326914,87.612,87.571,3.64986474]
[1772114064801,3.72096914,87.611,87.571,3.64986474]
[1772114065102,3.72096914,87.609,87.56,2.99594498]
[1772114065901,3.64950315,87.604,87.562,10.2781]
[1772114066490,3.64950315,87.604,87.568,10.2773]
[1772114067701,10.2712,87.621,87.581,3.51529122]
[1772114068095,13.92070315,87.621,87.581,3.51529122]
[1772114068497,3.64950315,87.616,87.57,2.99594498]
[1772114068698,3.64950315,87.609,87.56,2.99594498]
[1772114069305,3.64950315,87.609,87.56,3.00236741]
[1772114069597,3.64950315,87.609,87.56,6.51765863]
[1772114070002,13.92230315,87.607,87.564,10.2778]
[1772114070396,3.64950315,87.606,87.564,10.2778]
[1772114071301,10.2732,87.604,87.564,10.2778]
[1772114072498,3.64950315,87.629,87.581,3.51529122]
[1772114072999,3.64950315,87.629,87.536,484.20245683]
[1772114073000,3.64950315,87.629,87.592,10.2745]
[1772114073396,10.2704,87.628,87.59,6.51765863]
[1772114073708,3.64950315,87.629,87.59,3.51529122]
[1772114075006,10.2711,87.622,87.58,3.00236741]
[1772114075208,3.64950315,87.621,87.577,3.51529122]
[1772114076602,3.64950315,87.621,87.579,10.276]
[1772114076802,3.64950315,87.621,87.579,13.79129122]
[1772114077002,3.64950315,87.621,87.583,10.2756]
[1772114077204,10.2706,87.626,87.583,14.10304644]
[1772114077509,3.84882606,87.647,87.601,3.82744644]
[1772114077709,3.84882606,87.647,87.607,10.2727]
[1772114080208,10.2683,87.646,87.601,3.82744644]
[1772114082298,10.2689,87.64,87.601,3.82744644]
[1772114082799,3.84882606,87.639,87.592,10.2745]
[1772114083203,3.84882606,87.627,87.587,3.82744644]
[1772114084005,6.85119347,87.64,87.59,3.00236741]
[1772114084205,6.85119347,87.64,87.591,3.82744644]
[1772114084507,6.85119347,87.64,87.537,34.18]
[1772114084508,10.268,87.649,87.604,3.82744644]
[1772114084707,3.00236741,87.65,87.604,3.82744644]
[1772114085606,3.00236741,87.65,87.608,3.82744644]
[1772114085607,10.2678,87.65,87.608,3.82744644]
[1772114086307,3.84882606,87.654,87.608,3.82744644]
[1772114086509,10.2693,87.637,87.608,3.82744644]
[1772114086813,10.2693,87.637,87.596,3.82744644]
[1772114087306,10.2693,87.637,87.524,35.44188934]
[1772114087307,3.84882606,87.633,87.588,10.275]
[1772114087908,3.00236741,87.64,87.595,3.82744644]
[1772114088114,3.84882606,87.649,87.595,3.82744644]
[1772114088320,3.00236741,87.64,87.595,3.82744644]
[1772114088908,3.84882606,87.639,87.595,3.82744644]
[1772114089704,10.2703,87.629,87.595,3.82744644]
[1772114090618,10.2695,87.636,87.596,10.274]
[1772114091912,10.2701,87.63,87.595,3.82744644]
[1772114093006,10.2701,87.63,87.58,3.00236741]
[1772114093007,14.11962606,87.624,87.582,3.82744644]
[1772114094113,14.11962606,87.624,87.583,10.2755]
[1772114094619,3.84882606,87.624,87.589,10.2748]
[1772114098717,3.00236741,87.63,87.589,10.2748]
[1772114098913,10.2692,87.638,87.594,3.58044838]
[1772114099113,6.57048172,87.64,87.594,3.58044838]
[1772114099918,3.56811431,87.64,87.607,10.2728]
[1772114101020,3.56811431,87.653,87.614,13.85234838]
[1772114101415,3.56811431,87.653,87.614,3.58044838]
[1772114102418,3.56811431,87.653,87.619,10.2713]
[1772114103021,3.56811431,87.653,87.614,3.58044838]
[1772114103221,3.56811431,87.651,87.614,3.58044838]
[1772114103421,3.00236741,87.65,87.614,3.58044838]
[1772114103619,6.57048172,87.65,87.614,3.58044838]
[1772114105720,6.57048172,87.65,87.616,10.2717]
[1772114105921,6.57048172,87.65,87.614,3.58044838]
[1772114106330,6.57048172,87.65,87.622,10.271]
[1772114106515,3.56811431,87.65,87.622,10.271]
[1772114107426,3.56811431,87.65,87.615,10.2718]
[1772114108325,3.56811431,87.65,87.614,3.58044838]
[1772114108326,6.57048172,87.65,87.614,3.58044838]
[1772114108625,3.56811431,87.649,87.614,3.58044838]
[1772114109026,13.83611431,87.649,87.614,3.58044838]
[1772114109327,3.56811431,87.648,87.607,10.2727]
[1772114111026,10.2681,87.647,87.607,10.2727]
[1772114112430,10.2687,87.642,87.607,10.2727]
[1772114112629,3.56811431,87.629,87.59,3.58044838]
[1772114112828,3.00236741,87.62,87.575,3.58044838]
[1772114113029,6.57048172,87.62,87.575,3.58044838]
[1772114113227,37.1772204,87.655,87.555,52.41334329]
[1772114113228,3.56811431,87.609,87.562,3.58044838]
[1772114113932,3.56811431,87.608,87.57,3.58044838]
[1772114115128,10.274,87.597,87.556,3.58044838]
[1772114115328,3.00236741,87.59,87.556,3.58044838]
[1772114115737,3.56811431,87.589,87.555,52.41334329]
[1772114116327,10.2752,87.587,87.555,52.41334329]
[1772114116728,10.2752,87.587,87.545,3.58044838]
[1772114117625,3.00236741,87.56,87.518,3.58044838]
[1772114118624,3.56811431,87.559,87.506,3.58044838]
[1772114118825,3.00236741,87.55,87.506,3.58044838]
[1772114119232,3.00236741,87.54,87.481,3.58044838]
[1772114119429,3.56811431,87.549,87.491,3.58044838]
[1772114119643,13.28076741,87.56,87.507,3.58044838]
[1772114119949,3.00236741,87.56,87.51,3.00236741]
[1772114120250,3.00236741,87.56,87.511,3.58044838]
[1772114120552,3.00236741,87.56,87.514,3.58044838]
[1772114120948,3.56811431,87.562,87.514,3.58044838]
[1772114121144,3.00236741,87.56,87.514,3.58044838]
[1772114122352,3.00236741,87.57,87.521,3.58044838]
[1772114122549,3.56811431,87.569,87.521,3.58044838]
[1772114122851,3.56811431,87.559,87.512,10.2838]
[1772114123050,5.13828737,87.601,87.495,3.58044838]
[1772114123051,3.56811431,87.549,87.495,3.58044838]
[1772114123354,3.00236741,87.56,87.501,3.58044838]
[1772114124450,3.56811431,87.559,87.501,3.58044838]
[1772114124648,3.56811431,87.549,87.5,3.00236741]
[1772114124848,3.56811431,87.549,87.496,3.58044838]
[1772114125953,3.56811431,87.549,87.501,13.86564838]
[1772114126950,3.56811431,87.549,87.501,10.2852]
[1772114127158,3.00236741,87.56,87.511,3.86536175]
[1772114127353,3.6202436,87.559,87.511,3.86536175]
[1772114128852,3.6202436,87.559,87.519,10.2831]
[1772114129253,3.6202436,87.529,87.47,491.10257331]
[1772114129552,159.8268,87.593,87.47,491.10257331]
[1772114129553,3.00782608,87.5,87.47,487.23721156]
[1772114129750,3.00782608,87.52,87.471,3.86536175]
[1772114129959,3.00782608,87.53,87.481,3.86536175]
[1772114130160,6.62806968,87.52,87.47,490.24503764]
[1772114130359,3.6202436,87.519,87.47,487.23721156]
[1772114131160,3.6202436,87.515,87.47,487.23721156]
[1772114131349,3.00782608,87.51,87.465,56.78240723]
[1772114131549,6.62806968,87.51,87.465,56.78240723]
[1772114132055,3.6202436,87.528,87.481,3.86536175]
[1772114132255,3.00782608,87.53,87.481,3.86536175]
[1772114132458,3.00782608,87.54,87.481,3.86536175]
[1772114132652,6.62806968,87.54,87.492,10.2863]
[1772114132853,3.6202436,87.539,87.481,3.86536175]
[1772114133254,3.00782608,87.54,87.481,3.86536175]
[1772114133255,3.6202436,87.529,87.481,3.86536175]
[1772114133559,3.6202436,87.529,87.474,10.2883]
[1772114133956,3.6202436,87.529,87.482,10.2875]
[1772114134859,3.6202436,87.529,87.48,3.00782608]
[1772114135061,3.6202436,87.549,87.501,3.86536175]
[1772114135258,3.6202436,87.533,87.483,3.86536175]
[1772114135956,3.6202436,87.532,87.49,3.00782608]
[1772114136961,3.6202436,87.529,87.49,3.00782608]
[1772114137262,3.6202436,87.519,87.468,3.86536175]
[1772114137461,10.2841,87.511,87.468,3.86536175]
[1772114137755,3.6202436,87.519,87.468,3.86536175]
[1772114138058,3.6202436,87.519,87.47,3.00782608]
[1772114138254,3.6202436,87.519,87.468,3.86536175]
[1772114138555,10.2841,87.511,87.47,3.00782608]
[1772114138861,3.6202436,87.519,87.47,3.00782608]
[1772114139455,10.284,87.512,87.47,3.00782608]
[1772114140262,3.6202436,87.519,87.47,13.29662608]
[1772114140765,3.6202436,87.519,87.471,3.7224961]
[1772114140960,3.6202436,87.519,87.48,3.00782608]
[1772114141463,3.6202436,87.519,87.481,10.2876]
[1772114141765,3.6202436,87.519,87.471,3.7224961]
[1772114141961,3.6202436,87.519,87.465,52.91704548]
[1772114142764,3.6202436,87.519,87.472,3.7224961]
[1772114143059,3.00782608,87.53,87.472,3.7224961]
[1772114143464,3.56908337,87.529,87.472,3.7224961]
[1772114143767,3.56908337,87.529,87.48,3.00782608]
[1772114144865,10.2824,87.526,87.48,3.00782608]
[1772114145469,3.56908337,87.529,87.48,3.00782608]
[1772114145960,3.56908337,87.519,87.472,3.7224961]
[1772114146960,10.2838,87.514,87.472,3.7224961]
[1772114147670,10.2855,87.499,87.465,52.91704548]
[1772114148057,3.56908337,87.506,87.465,52.91704548]
[1772114148860,13.85378337,87.506,87.465,52.91704548]
[1772114149062,3.56908337,87.52,87.471,3.7224961]
[1772114149262,3.56908337,87.52,87.48,3.00782608]
[1772114150064,3.56908337,87.52,87.471,3.7224961]
[1772114150367,3.56908337,87.52,87.48,3.00782608]
[1772114150564,3.56908337,87.52,87.472,3.7224961]
[1772114151062,3.56908337,87.509,87.449,3.7224961]
[1772114151265,3.56908337,87.509,87.373,160.2276]
[1772114151266,6.57690945,87.48,87.434,3.7224961]
[1772114152155,10.2888,87.471,87.434,3.7224961]
[1772114153160,10.2878,87.479,87.44,3.00782608]
[1772114153760,3.56908337,87.51,87.46,6.73032218]
[1772114154066,3.56908337,87.51,87.461,3.7224961]
[1772114154067,6.57690945,87.51,87.461,3.7224961]
[1772114154267,3.56908337,87.509,87.461,3.7224961]
[1772114154464,3.56908337,87.509,87.453,10.2908]
[1772114154667,3.56908337,87.509,87.454,3.7224961]
[1772114154964,10.2866,87.49,87.454,3.7224961]
[1772114155665,10.2857,87.497,87.454,3.7224961]
[1772114157067,3.56908337,87.509,87.461,3.86173829]
[1772114157068,10.2849,87.505,87.461,3.86173829]
[1772114157569,10.2856,87.498,87.461,3.86173829]
[1772114159463,10.2856,87.498,87.406,20.5927]
[1772114159464,10.2865,87.491,87.45,3.00782608]
[1772114160171,3.87070662,87.499,87.446,3.86173829]
[1772114160372,3.87070662,87.489,87.446,3.86173829]
[1772114160773,10.2881,87.477,87.446,3.86173829]
[1772114161072,3.87070662,87.489,87.446,3.86173829]
[1772114161466,3.00782608,87.48,87.431,3.86173829]
[1772114161770,3.87070662,87.489,87.44,3.00782608]
[1772114162172,10.2859,87.496,87.448,3.86173829]
[1772114162476,3.00782608,87.51,87.451,3.86173829]
[1772114162875,3.00782608,87.51,87.391,160.1939]
[1772114162876,3.00782608,87.51,87.461,3.86173829]
[1772114163369,3.87070662,87.499,87.442,3.86173829]
[1772114163766,6.8785327,87.49,87.442,3.86173829]
[1772114163967,10.2876,87.481,87.442,3.86173829]
[1772114164274,3.00782608,87.48,87.442,3.86173829]
[1772114164870,3.00782608,87.5,87.448,3.86173829]
[1772114165077,3.00782608,87.5,87.45,3.00782608]
[1772114165374,3.00782608,87.5,87.451,3.86173829]
[1772114165978,10.2862,87.494,87.456,10.2905]
[1772114166977,10.2862,87.494,87.451,3.86173829]
[1772114169176,10.2862,87.494,87.453,14.15253829]
[1772114171368,3.00782608,87.5,87.453,14.15253829]
[1772114171369,6.8785327,87.5,87.453,3.86173829]
[1772114171578,3.87070662,87.499,87.453,3.86173829]
[1772114172881,10.2869,87.488,87.453,3.86173829]
[1772114174573,3.87070662,87.499,87.453,3.86173829]
[1772114174778,10.286,87.495,87.455,3.86173829]
[1772114176681,10.2867,87.489,87.455,3.86173829]
[1772114177274,3.00782608,87.48,87.439,3.86173829]
[1772114178985,3.87070662,87.489,87.448,3.86173829]
[1772114179282,10.287,87.486,87.448,3.86173829]
[1772114180385,10.288,87.478,87.448,3.86173829]
[1772114180587,10.288,87.478,87.435,3.86173829]
[1772114181788,10.288,87.478,87.447,23.85922873]
[1772114182187,3.00782608,87.5,87.451,3.86173829]
[1772114182382,8.67376602,87.499,87.451,3.86173829]
[1772114182579,3.00782608,87.5,87.451,3.86173829]
[1772114183386,51.55862495,87.532,87.42,3.86173829]
[1772114183387,3.87070662,87.469,87.42,3.86173829]
[1772114183583,3.00782608,87.48,87.421,3.86173829]
[1772114184084,3.00782608,87.48,87.435,3.86173829]
[1772114184883,3.00782608,87.48,87.436,10.2928]
[1772114185090,3.00782608,87.48,87.437,3.86173829]
[1772114185482,10.2878,87.479,87.437,3.86173829]
[1772114185682,10.2878,87.479,87.439,3.86173829]
[1772114188394,10.2868,87.488,87.441,3.76429246]
[1772114189787,10.2858,87.496,87.444,3.76429246]
[1772114190679,3.00782608,87.49,87.444,3.76429246]
[1772114190884,3.00782608,87.49,87.445,10.2918]
[1772114191085,3.00782608,87.49,87.446,3.76429246]
[1772114191284,3.01035176,87.49,87.446,3.76429246]
[1772114191690,3.01035176,87.5,87.448,3.76429246]
[1772114191893,3.01035176,87.5,87.44,3.01035176]
[1772114191894,3.01035176,87.48,87.428,3.76429246]
[1772114192297,3.01035176,87.48,87.431,3.76429246]
[1772114193394,3.01035176,87.48,87.442,10.2921]
[1772114194091,3.01035176,87.48,87.448,10.2914]
[1772114194395,3.77320453,87.469,87.411,3.76429246]
[1772114194797,3.77320453,87.469,87.425,3.76429246]
[1772114196696,3.01035176,87.48,87.425,3.76429246]
[1772114196897,3.77320453,87.479,87.425,3.76429246]
[1772114197588,3.01035176,87.47,87.433,10.2932]
[1772114198393,3.01035176,87.47,87.425,14.05849246]
[1772114198898,10.2891,87.469,87.425,14.05849246]
[1772114199200,13.91057192,87.469,87.425,14.05849246]
[1772114199699,6.63182368,87.46,87.425,10.2942]
[1772114199897,3.62147192,87.459,87.418,10.295]
[1772114200501,3.62147192,87.459,87.424,10.2942]
[1772114200697,3.01035176,87.47,87.425,3.58377434]
[1772114200996,3.62147192,87.473,87.425,3.58377434]
[1772114201189,3.62147192,87.473,87.439,10.2925]
[1772114201997,3.01035176,87.47,87.432,10.2934]
[1772114203695,3.62147192,87.469,87.432,10.2934]
[1772114208510,3.62147192,87.469,87.438,10.2926]
[1772114208708,3.62147192,87.469,87.423,3.58377434]
[1772114209103,3.62147192,87.469,87.43,10.2935]
[1772114209909,3.62147192,87.479,87.434,3.58377434]
[1772114210408,3.01035176,87.47,87.434,3.58377434]
[1772114210810,3.01035176,87.47,87.437,10.2927]
[1772114211906,10.288,87.478,87.438,3.58377434]
[1772114212209,3.01035176,87.49,87.441,3.58377434]
[1772114212607,3.01035176,87.48,87.441,3.58377434]
[1772114212808,3.62147192,87.479,87.441,3.58377434]
[1772114213003,3.62147192,87.479,87.42,3.01035176]
[1772114213004,3.62147192,87.479,87.421,3.58377434]
[1772114213407,3.01035176,87.47,87.422,3.58377434]
[1772114213610,3.62147192,87.479,87.422,3.58377434]
[1772114214712,3.01035176,87.47,87.422,3.58377434]
[1772114214913,3.01035176,87.47,87.432,10.2933]
[1772114215314,3.62147192,87.469,87.422,3.58377434]
[1772114216613,3.49528325,87.467,87.41,3.62437612]
[1772114216912,6.50563501,87.46,87.411,3.62437612]
[1772114217112,3.01035176,87.47,87.422,10.2945]
[1772114217313,3.01035176,87.47,87.423,3.62437612]
[1772114217918,10.2888,87.471,87.434,10.2931]
[1772114218717,3.49528325,87.473,87.434,13.91747612]
[1772114219518,10.2872,87.485,87.438,3.62437612]
[1772114219708,3.49528325,87.499,87.441,3.62437612]
[1772114219913,8.70814731,87.498,87.441,3.62437612]
[1772114220109,8.70814731,87.497,87.441,3.62437612]
[1772114220317,10.2858,87.497,87.455,3.62437612]
[1772114221121,10.2862,87.493,87.455,3.62437612]
[1772114221317,3.49528325,87.496,87.455,3.62437612]
[1772114221526,3.49528325,87.508,87.461,3.62437612]
[1772114221713,3.49528325,87.521,87.471,3.62437612]
[1772114222719,3.49528325,87.521,87.483,10.2873]
[1772114223023,3.01035176,87.52,87.471,3.62437612]
[1772114223918,3.01035176,87.53,87.481,3.62437612]
[1772114224426,3.49528325,87.534,87.49,3.62437612]
[1772114224622,10.5060857,87.575,87.501,3.62437612]
[1772114224820,3.49528325,87.562,87.511,3.62437612]
[1772114225121,3.01035176,87.56,87.511,3.62437612]
[1772114226013,3.49528325,87.562,87.51,3.01035176]
[1772114226014,3.49528325,87.562,87.513,3.62437612]
[1772114227121,3.49528325,87.559,87.513,3.62437612]
[1772114229026,3.49528325,87.559,87.516,3.62437612]
[1772114229426,10.2772,87.57,87.51,3.01035176]
[1772114229427,3.01035176,87.57,87.519,3.62437612]
[1772114230222,3.01035176,87.57,87.524,3.62437612]
[1772114231922,3.49528325,87.569,87.524,3.62437612]
[1772114232224,3.01035176,87.56,87.524,3.62437612]
[1772114233828,3.49528325,87.558,87.507,3.62437612]
[1772114235022,10.2787,87.557,87.51,3.62437612]
[1772114235940,10.2787,87.557,87.512,13.90827612]
[1772114237137,3.01035176,87.57,87.52,3.01035176]
[1772114237340,3.01035176,87.57,87.521,3.62437612]
[1772114237639,3.01035176,87.58,87.533,3.62437612]
[1772114238338,3.01035176,87.58,87.539,10.2807]
[1772114240838,3.49528325,87.588,87.544,3.62437612]
[1772114241141,3.01035176,87.59,87.544,3.62437612]
[1772114241340,3.01035176,87.59,87.554,3.62437612]
[1772114241537,10.274,87.597,87.554,3.62437612]
[1772114242240,3.01035176,87.6,87.556,3.62437612]
[1772114242836,6.50563501,87.6,87.556,3.62437612]
[1772114243031,3.01035176,87.59,87.54,3.62437612]
[1772114243341,3.01035176,87.59,87.54,6.63472788]
[1772114243931,10.274,87.597,87.555,10.2789]
[1772114244136,10.274,87.597,87.54,6.63472788]
[1772114244137,3.49528325,87.604,87.55,3.01035176]
[1772114244539,3.49528325,87.604,87.561,10.2781]
[1772114244844,3.49528325,87.604,87.562,3.62437612]
[1772114245342,10.2737,87.599,87.562,3.62437612]
[1772114246539,10.275,87.589,87.547,3.83082546]
[1772114247337,3.7548586,87.579,87.53,3.83082546]
[1772114247539,3.01035176,87.57,87.53,3.83082546]
[1772114248448,3.7548586,87.559,87.501,3.83082546]
[1772114248644,3.7548586,87.559,87.51,6.84117722]
[1772114248841,3.7548586,87.559,87.511,3.83082546]
[1772114249740,14.0333586,87.559,87.517,10.2833]
[1772114250041,3.01035176,87.55,87.511,3.83082546]
[1772114251443,3.01035176,87.57,87.511,3.83082546]
[1772114251840,3.7548586,87.569,87.511,3.83082546]
[1772114252048,10.2786,87.558,87.518,10.2832]
[1772114253048,3.01035176,87.55,87.511,3.83082546]
[1772114253348,3.00622419,87.55,87.511,3.83082546]
[1772114254245,14.0337586,87.555,87.516,10.2834]
[1772114254446,14.0337586,87.555,87.511,3.83082546]
[1772114254839,10.2797,87.549,87.511,3.83082546]
[1772114255751,10.2805,87.541,87.502,3.83082546]
[1772114256151,3.00622419,87.54,87.502,3.83082546]
[1772114256351,10.281,87.538,87.502,3.83082546]
[1772114258546,3.00622419,87.54,87.502,3.83082546]
[1772114259350,3.73848939,87.539,87.488,3.68093639]
[1772114259661,3.00622419,87.52,87.475,3.68093639]
[1772114260151,3.73848939,87.529,87.475,3.68093639]
[1772114260355,3.73848939,87.543,87.49,3.68093639]
[1772114260552,3.00622419,87.53,87.49,3.68093639]
[1772114260749,3.00622419,87.55,87.501,3.68093639]
[1772114262046,13.28572419,87.55,87.506,10.2846]
[1772114265945,3.73848939,87.545,87.501,3.68093639]
[1772114266146,3.00622419,87.54,87.501,3.68093639]
[1772114266947,13.28692419,87.54,87.501,3.68093639]
[1772114267145,17.02541358,87.54,87.501,3.68093639]
[1772114267343,3.73848939,87.539,87.492,10.2863]
[1772114268148,3.73848939,87.539,87.492,13.96723639]
[1772114268348,3.73848939,87.539,87.492,3.68093639]
[1772114270051,3.73848939,87.539,87.504,10.2848]
[1772114270450,14.01928939,87.539,87.497,10.2857]
[1772114270655,3.73848939,87.539,87.497,10.2857]
[1772114272857,10.2811,87.537,87.497,10.2857]
[1772114274660,3.73848939,87.533,87.497,10.2857]
[1772114278664,3.73848939,87.533,87.503,10.285]
[1772114278863,10.2806,87.541,87.503,10.285]
[1772114279166,3.57956099,87.54,87.503,10.285]
[1772114279865,10.2806,87.541,87.507,3.8314518]
[1772114280261,10.2798,87.547,87.509,10.2842]
[1772114280964,13.85936099,87.547,87.509,10.2842]
[1772114283765,3.57956099,87.546,87.515,10.2835]
[1772114283962,3.57956099,87.546,87.507,3.8314518]
[1772114284961,3.57956099,87.546,87.513,10.2837]
[1772114286266,10.2795,87.551,87.514,3.8314518]
[1772114288371,10.2797,87.549,87.514,3.8314518]
[1772114288773,3.57956099,87.539,87.5,14.1167518]
[1772114289871,10.281,87.538,87.5,14.1167518]
[1772114291568,3.57956099,87.539,87.503,14.1163518]
[1772114291770,10.2801,87.545,87.504,3.8314518]
[1772114292873,10.2801,87.545,87.505,10.2847]